[Event "Titled Tuesday Blitz June 21 Early 2022"]
[White "Agasarov, Benik"]
[Black "Tasev, Dejan"]
[WhiteFideId "13314823"]
[BlackFideId "936618"]
[WhiteElo "2649"]
[BlackElo "2253"]
[Result "1-0"]
[Round "11"]
[TimeControl "180+1"]
[Date "2022.06.21"]
[WhiteClock "0:01:07"]
[BlackClock "0:00:19"]

1. e4 {[%clk 0:02:59]}  e5 {[%clk 0:02:59]} 2. Nf3 {[%clk 0:02:58]}  Nc6 {[%clk 0:02:59]} 3. c3 {[%clk 0:02:56]}  g6 {[%clk 0:02:58]} 4. d4 {[%clk 0:02:56]}  exd4 {[%clk 0:02:56]} 5. cxd4 {[%clk 0:02:57]}  d6 {[%clk 0:02:55]} 6. Nc3 {[%clk 0:02:55]}  Bg7 {[%clk 0:02:55]} 7. Bg5 {[%clk 0:02:55]}  Nce7 {[%clk 0:02:47]} 8. Bc4 {[%clk 0:02:48]}  h6 {[%clk 0:02:46]} 9. Bh4 {[%clk 0:02:45]}  g5 {[%clk 0:02:45]} 10. Bg3 {[%clk 0:02:45]}  Ng6 {[%clk 0:02:44]} 11. Qb3 {[%clk 0:02:43]}  Qd7 {[%clk 0:02:40]} 12. O-O-O {[%clk 0:02:27]}  a6 {[%clk 0:02:29]} 13. e5 {[%clk 0:02:23]}  b5 {[%clk 0:01:59]} 14. Bd5 {[%clk 0:02:19]}  c6 {[%clk 0:01:55]} 15. e6 {[%clk 0:01:53]}  fxe6 {[%clk 0:01:51]} 16. Bxe6 {[%clk 0:01:52]}  Qxe6 {[%clk 0:01:51]} 17. Rhe1 {[%clk 0:01:52]}  Ne5 {[%clk 0:01:50]} 18. dxe5 {[%clk 0:01:52]}  Qxb3 {[%clk 0:01:48]} 19. axb3 {[%clk 0:01:46]}  d5 {[%clk 0:01:47]} 20. Nd4 {[%clk 0:01:45]}  Ne7 {[%clk 0:01:44]} 21. b4 {[%clk 0:01:43]}  O-O {[%clk 0:01:29]} 22. f3 {[%clk 0:01:35]}  a5 {[%clk 0:01:16]} 23. bxa5 {[%clk 0:01:34]}  Rxa5 {[%clk 0:01:15]} 24. b4 {[%clk 0:01:34]}  Ra7 {[%clk 0:01:09]} 25. Kb2 {[%clk 0:01:32]}  Bd7 {[%clk 0:01:04]} 26. e6 {[%clk 0:01:29]}  Be8 {[%clk 0:01:01]} 27. Bd6 {[%clk 0:01:28]}  Rf6 {[%clk 0:00:49]} 28. Bc5 {[%clk 0:01:25]}  Ra8 {[%clk 0:00:49]} 29. Bxe7 {[%clk 0:01:25]}  Rf4 {[%clk 0:00:39]} 30. Bc5 {[%clk 0:01:16]}  g4 {[%clk 0:00:39]} 31. Nce2 {[%clk 0:01:14]}  Rf6 {[%clk 0:00:36]} 32. f4 {[%clk 0:01:14]}  Rxe6 {[%clk 0:00:36]} 33. Ng3 {[%clk 0:01:11]}  Rxe1 {[%clk 0:00:33]} 34. Rxe1 {[%clk 0:01:12]}  Bf7 {[%clk 0:00:32]} 35. Nf5 {[%clk 0:01:12]}  Bh8 {[%clk 0:00:30]} 36. Nxh6+ {[%clk 0:01:11]}  Kg7 {[%clk 0:00:30]} 37. Nxg4 {[%clk 0:01:08]}  Bg6 {[%clk 0:00:29]} 38. f5 {[%clk 0:01:08]}  Bh5 {[%clk 0:00:27]} 39. Ne5 {[%clk 0:01:08]}  Kg8 {[%clk 0:00:25]} 40. g4 {[%clk 0:01:06]}  Bxe5 {[%clk 0:00:23]} 41. Rxe5 {[%clk 0:01:06]}  Bxg4 {[%clk 0:00:23]} 42. Nxc6 {[%clk 0:01:07]}  Bf3 {[%clk 0:00:19]} 43. Ne7+ {[%clk 0:01:07]}  Kf7 {[%clk 0:00:19]} 44. Nxd5 {[%clk 0:01:07]}  Rg8 {[%clk 0:00:19]} 45. Re7+ {[%clk 0:01:07]} 1-0


[Site "https://www.chess.com"]

[Event "Titled Tuesday Blitz June 21 Early 2022"]
[White "Avazkhonov, Alikhon"]
[Black "Harsh Suresh"]
[WhiteFideId "14208504"]
[BlackFideId "45018464"]
[WhiteElo "1739"]
[BlackElo "2059"]
[Result "1-0"]
[Round "11"]
[TimeControl "180+1"]
[Date "2022.06.22"]
[WhiteClock "0:00:55"]
[BlackClock "0:00:19"]

1. d4 {[%clk 0:03:00]}  g6 {[%clk 0:02:58]} 2. c4 {[%clk 0:03:00]}  Bg7 {[%clk 0:02:58]} 3. Nc3 {[%clk 0:03:01]}  c5 {[%clk 0:02:56]} 4. d5 {[%clk 0:03:00]}  Bxc3+ {[%clk 0:02:56]} 5. bxc3 {[%clk 0:03:00]}  f5 {[%clk 0:02:56]} 6. Qc2 {[%clk 0:02:47]}  d6 {[%clk 0:02:56]} 7. h4 {[%clk 0:02:38]}  Nf6 {[%clk 0:02:55]} 8. Bg5 {[%clk 0:02:36]}  Nbd7 {[%clk 0:02:48]} 9. e3 {[%clk 0:02:33]}  Ne4 {[%clk 0:02:44]} 10. Nf3 {[%clk 0:02:27]}  Qa5 {[%clk 0:02:41]} 11. Bd3 {[%clk 0:02:21]}  Qxc3+ {[%clk 0:02:38]} 12. Qxc3 {[%clk 0:02:21]}  Nxc3 {[%clk 0:02:39]} 13. h5 {[%clk 0:02:16]}  O-O {[%clk 0:02:23]} 14. hxg6 {[%clk 0:02:10]}  hxg6 {[%clk 0:02:24]} 15. Bxe7 {[%clk 0:02:10]}  Rf6 {[%clk 0:01:51]} 16. Kd2 {[%clk 0:01:37]}  Na4 {[%clk 0:01:36]} 17. Ng5 {[%clk 0:01:25]}  Rf8 {[%clk 0:00:38]} 18. Bxd6 {[%clk 0:01:22]}  Re8 {[%clk 0:00:33]} 19. Ne6 {[%clk 0:01:14]}  Nf6 {[%clk 0:00:30]} 20. Nc7 {[%clk 0:01:13]}  Bd7 {[%clk 0:00:31]} 21. Nxa8 {[%clk 0:01:12]}  Rxa8 {[%clk 0:00:31]} 22. Be5 {[%clk 0:01:12]}  Nh5 {[%clk 0:00:26]} 23. g4 {[%clk 0:01:08]}  fxg4 {[%clk 0:00:20]} 24. Bxg6 {[%clk 0:01:08]}  Ng7 {[%clk 0:00:21]} 25. Rh7 {[%clk 0:01:06]}  Re8 {[%clk 0:00:17]} 26. Rxg7+ {[%clk 0:01:04]}  Kf8 {[%clk 0:00:18]} 27. Bxe8 {[%clk 0:00:57]}  Bxe8 {[%clk 0:00:18]} 28. Rh1 {[%clk 0:00:56]}  Nb6 {[%clk 0:00:19]} 29. Rh8# {[%clk 0:00:55]} 1-0


[Site "https://www.chess.com"]

[Event "Titled Tuesday Blitz June 21 Early 2022"]
[White "Barbashin, Igor"]
[Black "Rosenberg, Evan S"]
[WhiteFideId "4155718"]
[BlackFideId "2019299"]
[WhiteElo "2138"]
[BlackElo "2360"]
[Result "1-0"]
[Round "11"]
[TimeControl "180+1"]
[Date "2022.06.22"]
[WhiteClock "0:01:33"]
[BlackClock "0:00:02"]

1. d4 {[%clk 0:03:00]}  Nf6 {[%clk 0:02:59]} 2. c4 {[%clk 0:03:00]}  e6 {[%clk 0:03:00]} 3. Nc3 {[%clk 0:03:00]}  Bb4 {[%clk 0:03:00]} 4. Nf3 {[%clk 0:02:59]}  b6 {[%clk 0:02:49]} 5. g3 {[%clk 0:02:59]}  Bb7 {[%clk 0:02:43]} 6. Bg2 {[%clk 0:02:58]}  O-O {[%clk 0:02:41]} 7. O-O {[%clk 0:02:58]}  Bxc3 {[%clk 0:02:27]} 8. bxc3 {[%clk 0:02:59]}  Qc8 {[%clk 0:02:26]} 9. Bg5 {[%clk 0:02:48]}  Ne4 {[%clk 0:02:25]} 10. Qc2 {[%clk 0:02:47]}  Nxg5 {[%clk 0:02:20]} 11. Nxg5 {[%clk 0:02:46]}  f5 {[%clk 0:02:20]} 12. e4 {[%clk 0:02:34]}  h6 {[%clk 0:02:20]} 13. Nh3 {[%clk 0:02:32]}  fxe4 {[%clk 0:01:13]} 14. Bxe4 {[%clk 0:02:30]}  Bxe4 {[%clk 0:01:14]} 15. Qxe4 {[%clk 0:02:30]}  Nc6 {[%clk 0:01:10]} 16. Nf4 {[%clk 0:02:25]}  Ne7 {[%clk 0:01:07]} 17. d5 {[%clk 0:02:21]}  Qb7 {[%clk 0:00:41]} 18. Rfe1 {[%clk 0:02:13]}  Rxf4 {[%clk 0:00:29]} 19. Qxf4 {[%clk 0:01:57]}  Rf8 {[%clk 0:00:30]} 20. Qe4 {[%clk 0:01:55]}  Nf5 {[%clk 0:00:09]} 21. dxe6 {[%clk 0:01:54]}  Qxe4 {[%clk 0:00:09]} 22. Rxe4 {[%clk 0:01:53]}  dxe6 {[%clk 0:00:10]} 23. Rxe6 {[%clk 0:01:53]}  Nd6 {[%clk 0:00:07]} 24. Re7 {[%clk 0:01:48]}  c5 {[%clk 0:00:05]} 25. Rxa7 {[%clk 0:01:46]}  Nxc4 {[%clk 0:00:06]} 26. Re1 {[%clk 0:01:43]}  Nd2 {[%clk 0:00:04]} 27. Ree7 {[%clk 0:01:42]}  Nf3+ {[%clk 0:00:04]} 28. Kg2 {[%clk 0:01:41]}  Ng5 {[%clk 0:00:04]} 29. Rxg7+ {[%clk 0:01:39]}  Kh8 {[%clk 0:00:04]} 30. f4 {[%clk 0:01:39]}  Ne6 {[%clk 0:00:03]} 31. Rg6 {[%clk 0:01:36]}  Re8 {[%clk 0:00:02]} 32. Rxh6+ {[%clk 0:01:35]}  Kg8 {[%clk 0:00:02]} 33. f5 {[%clk 0:01:33]} 1-0


[Site "https://www.chess.com"]

[Event "Titled Tuesday Blitz June 21 Early 2022"]
[White "Bilych, Olexiy"]
[Black "Sadykov, Ramil"]
[WhiteFideId "14156504"]
[BlackFideId "24113590"]
[WhiteElo "2189"]
[BlackElo "2226"]
[Result "1-0"]
[Round "11"]
[TimeControl "180+1"]
[Date "2022.06.21"]
[WhiteClock "0:00:36"]
[BlackClock "0:00:04"]

1. e4 {[%clk 0:03:00]}  c5 {[%clk 0:03:00]} 2. Nf3 {[%clk 0:03:01]}  Nc6 {[%clk 0:03:00]} 3. d4 {[%clk 0:03:01]}  cxd4 {[%clk 0:03:00]} 4. Nxd4 {[%clk 0:03:02]}  Nf6 {[%clk 0:03:00]} 5. Nc3 {[%clk 0:03:02]}  d6 {[%clk 0:03:01]} 6. Bg5 {[%clk 0:03:02]}  Bd7 {[%clk 0:03:00]} 7. Qd2 {[%clk 0:03:00]}  h6 {[%clk 0:02:59]} 8. Bxf6 {[%clk 0:02:59]}  gxf6 {[%clk 0:03:00]} 9. Nf5 {[%clk 0:02:57]}  Qa5 {[%clk 0:02:52]} 10. O-O-O {[%clk 0:01:12]}  O-O-O {[%clk 0:02:38]} 11. Bc4 {[%clk 0:01:09]}  Ne5 {[%clk 0:01:52]} 12. Bb3 {[%clk 0:01:08]}  Qc5 {[%clk 0:01:36]} 13. Kb1 {[%clk 0:01:05]}  Kb8 {[%clk 0:01:33]} 14. f4 {[%clk 0:00:55]}  Nc4 {[%clk 0:01:33]} 15. Bxc4 {[%clk 0:00:54]}  Qxc4 {[%clk 0:01:34]} 16. Rhe1 {[%clk 0:00:51]}  Rc8 {[%clk 0:01:09]} 17. Nd5 {[%clk 0:00:51]}  e6 {[%clk 0:00:02]} 18. Nxf6 {[%clk 0:00:50]}  Ba4 {[%clk 0:00:02]} 19. b3 {[%clk 0:00:50]}  Qb5 {[%clk 0:00:02]} 20. Nxd6 {[%clk 0:00:49]}  Bxd6 {[%clk 0:00:03]} 21. Qxd6+ {[%clk 0:00:48]}  Ka8 {[%clk 0:00:04]} 22. Qd4 {[%clk 0:00:36]} 1-0


[Site "https://www.chess.com"]

[Event "Titled Tuesday Blitz June 21 Early 2022"]
[White "Bongo Akanga Ndjila, Barthelemy"]
[Black "Roman, Rodrigo"]
[WhiteFideId "10609431"]
[BlackFideId "3701220"]
[WhiteElo "1768"]
[BlackElo "2001"]
[Result "0-1"]
[Round "11"]
[TimeControl "180+1"]
[Date "2022.06.22"]
[WhiteClock "0:01:15"]
[BlackClock "0:01:22"]

1. d4 {[%clk 0:03:00]}  d5 {[%clk 0:02:58]} 2. c4 {[%clk 0:03:00]}  c6 {[%clk 0:02:56]} 3. Nc3 {[%clk 0:03:00]}  Nf6 {[%clk 0:02:56]} 4. Nf3 {[%clk 0:02:59]}  Bf5 {[%clk 0:02:54]} 5. e3 {[%clk 0:02:59]}  e6 {[%clk 0:02:54]} 6. Qb3 {[%clk 0:02:57]}  Qb6 {[%clk 0:02:48]} 7. Bd2 {[%clk 0:02:55]}  Nbd7 {[%clk 0:02:47]} 8. c5 {[%clk 0:02:53]}  Qxb3 {[%clk 0:02:46]} 9. axb3 {[%clk 0:02:53]}  a6 {[%clk 0:02:47]} 10. b4 {[%clk 0:02:51]}  Rd8 {[%clk 0:02:38]} 11. Na4 {[%clk 0:02:48]}  h6 {[%clk 0:02:37]} 12. Nh4 {[%clk 0:02:47]}  Bh7 {[%clk 0:02:30]} 13. Be2 {[%clk 0:02:30]}  e5 {[%clk 0:02:25]} 14. g4 {[%clk 0:02:25]}  g5 {[%clk 0:02:09]} 15. Nf5 {[%clk 0:02:22]}  Bxf5 {[%clk 0:02:08]} 16. gxf5 {[%clk 0:02:22]}  exd4 {[%clk 0:02:08]} 17. exd4 {[%clk 0:02:21]}  Bg7 {[%clk 0:02:08]} 18. f3 {[%clk 0:02:18]}  Nh5 {[%clk 0:02:07]} 19. Bc3 {[%clk 0:02:17]}  Nf4 {[%clk 0:02:06]} 20. h4 {[%clk 0:02:07]}  gxh4 {[%clk 0:02:02]} 21. Kf2 {[%clk 0:02:05]}  Bf6 {[%clk 0:01:59]} 22. Rag1 {[%clk 0:02:03]}  Bg5 {[%clk 0:01:55]} 23. Rg4 {[%clk 0:01:55]}  Nxe2 {[%clk 0:01:54]} 24. Kxe2 {[%clk 0:01:54]}  Nf6 {[%clk 0:01:55]} 25. Rg2 {[%clk 0:01:49]}  Nh5 {[%clk 0:01:55]} 26. Rg4 {[%clk 0:01:44]}  Ng3+ {[%clk 0:01:44]} 27. Rxg3 {[%clk 0:01:40]}  hxg3 {[%clk 0:01:45]} 28. Nb6 {[%clk 0:01:30]}  h5 {[%clk 0:01:43]} 29. Bd2 {[%clk 0:01:29]}  Bxd2 {[%clk 0:01:33]} 30. Kxd2 {[%clk 0:01:30]}  Ke7 {[%clk 0:01:29]} 31. Ke3 {[%clk 0:01:28]}  Kf6 {[%clk 0:01:28]} 32. Kf4 {[%clk 0:01:28]}  h4 {[%clk 0:01:29]} 33. Na4 {[%clk 0:01:21]}  Rdg8 {[%clk 0:01:28]} 34. Nc3 {[%clk 0:01:19]}  Rh5 {[%clk 0:01:26]} 35. Ne2 {[%clk 0:01:17]}  Rxf5+ {[%clk 0:01:25]} 36. Ke3 {[%clk 0:01:16]}  Re8+ {[%clk 0:01:24]} 37. Kd2 {[%clk 0:01:15]}  Rxf3 {[%clk 0:01:23]} 38. Rxh4 {[%clk 0:01:15]}  Rf2 {[%clk 0:01:23]} 39. Kd3 {[%clk 0:01:15]}  Rexe2 {[%clk 0:01:22]} 0-1


[Site "https://www.chess.com"]

[Event "Titled Tuesday Blitz June 21 Early 2022"]
[White "Borisova, Ekaterina"]
[Black "Alinasab, Mobina"]
[WhiteFideId "34124184"]
[BlackFideId "12528897"]
[WhiteElo "2039"]
[BlackElo "2031"]
[Result "1-0"]
[Round "11"]
[TimeControl "180+1"]
[Date "2022.06.22"]
[WhiteClock "0:01:38"]
[BlackClock "0:01:29"]

1. d4 {[%clk 0:02:58]}  Nf6 {[%clk 0:02:58]} 2. c4 {[%clk 0:02:58]}  e6 {[%clk 0:02:59]} 3. g3 {[%clk 0:02:58]}  d5 {[%clk 0:02:57]} 4. Nf3 {[%clk 0:02:58]}  dxc4 {[%clk 0:02:57]} 5. Bg2 {[%clk 0:02:58]}  c6 {[%clk 0:02:58]} 6. O-O {[%clk 0:02:57]}  b5 {[%clk 0:02:57]} 7. a4 {[%clk 0:02:57]}  Bb7 {[%clk 0:02:58]} 8. Ne5 {[%clk 0:02:57]}  a6 {[%clk 0:02:58]} 9. b3 {[%clk 0:02:57]}  cxb3 {[%clk 0:02:57]} 10. Qxb3 {[%clk 0:02:58]}  Qxd4 {[%clk 0:02:58]} 11. Bb2 {[%clk 0:02:58]}  Qb4 {[%clk 0:02:58]} 12. Qc2 {[%clk 0:02:58]}  Qc5 {[%clk 0:02:58]} 13. Qd3 {[%clk 0:02:58]}  Qb6 {[%clk 0:02:55]} 14. Nd2 {[%clk 0:02:52]}  Be7 {[%clk 0:02:51]} 15. Ne4 {[%clk 0:02:47]}  O-O {[%clk 0:02:41]} 16. Ng5 {[%clk 0:01:58]}  h6 {[%clk 0:02:34]} 17. Ngxf7 {[%clk 0:01:58]}  Rxf7 {[%clk 0:02:34]} 18. Qg6 {[%clk 0:01:56]}  Rf8 {[%clk 0:02:18]} 19. Ng4 {[%clk 0:01:54]}  Kh8 {[%clk 0:02:01]} 20. Be4 {[%clk 0:01:44]}  Nbd7 {[%clk 0:01:34]} 21. Nxf6 {[%clk 0:01:39]}  Nxf6 {[%clk 0:01:29]} 22. Bxf6 {[%clk 0:01:38]} 1-0


[Site "https://www.chess.com"]

[Event "Titled Tuesday Blitz June 21 Early 2022"]
[White "Buscar, Michael"]
[Black "Gracia Alvarez, Gerardo Antonio"]
[WhiteFideId "2603616"]
[BlackFideId "5109124"]
[WhiteElo "2010"]
[BlackElo "2139"]
[Result "0-1"]
[Round "11"]
[TimeControl "180+1"]
[Date "2022.06.22"]
[WhiteClock "0:00:36"]
[BlackClock "0:01:01"]

1. d4 {[%clk 0:03:00]}  Nf6 {[%clk 0:02:59]} 2. c4 {[%clk 0:02:59]}  c5 {[%clk 0:03:00]} 3. e3 {[%clk 0:02:59]}  g6 {[%clk 0:02:59]} 4. Nf3 {[%clk 0:02:59]}  Bg7 {[%clk 0:02:59]} 5. Nc3 {[%clk 0:02:59]}  O-O {[%clk 0:02:59]} 6. Be2 {[%clk 0:02:59]}  cxd4 {[%clk 0:02:58]} 7. exd4 {[%clk 0:02:56]}  d5 {[%clk 0:02:59]} 8. O-O {[%clk 0:02:53]}  Nc6 {[%clk 0:02:49]} 9. c5 {[%clk 0:02:50]}  Ne4 {[%clk 0:02:47]} 10. Be3 {[%clk 0:02:49]}  e5 {[%clk 0:02:21]} 11. dxe5 {[%clk 0:02:42]}  Nxc3 {[%clk 0:02:18]} 12. bxc3 {[%clk 0:02:42]}  Nxe5 {[%clk 0:02:17]} 13. Bd4 {[%clk 0:02:34]}  Nc6 {[%clk 0:02:13]} 14. Bxg7 {[%clk 0:02:23]}  Kxg7 {[%clk 0:02:14]} 15. Nd4 {[%clk 0:02:23]}  Re8 {[%clk 0:02:09]} 16. Bf3 {[%clk 0:02:18]}  Ne5 {[%clk 0:02:08]} 17. Nb5 {[%clk 0:02:04]}  Nxf3+ {[%clk 0:01:52]} 18. Qxf3 {[%clk 0:02:02]}  Be6 {[%clk 0:01:49]} 19. Qf4 {[%clk 0:01:56]}  Re7 {[%clk 0:01:44]} 20. Rad1 {[%clk 0:01:50]}  Qa5 {[%clk 0:01:39]} 21. a4 {[%clk 0:01:36]}  a6 {[%clk 0:01:34]} 22. Qd4+ {[%clk 0:01:32]}  Kg8 {[%clk 0:01:34]} 23. Nd6 {[%clk 0:01:29]}  Rc7 {[%clk 0:01:31]} 24. Rd3 {[%clk 0:00:59]}  Qxc5 {[%clk 0:01:12]} 25. Qxc5 {[%clk 0:00:57]}  Rxc5 {[%clk 0:01:13]} 26. Nxb7 {[%clk 0:00:57]}  Rc4 {[%clk 0:01:12]} 27. Re1 {[%clk 0:00:44]}  Rb8 {[%clk 0:01:06]} 28. Na5 {[%clk 0:00:36]}  Rc5 {[%clk 0:01:01]} 0-1


[Site "https://www.chess.com"]

[Event "Titled Tuesday Blitz June 21 Early 2022"]
[White "Cherniaiev, Tykhon"]
[Black "Karttunen, Mika"]
[WhiteFideId "14182360"]
[BlackFideId "502081"]
[WhiteElo "2289"]
[BlackElo "2343"]
[Result "1/2-1/2"]
[Round "11"]
[TimeControl "180+1"]
[Date "2022.06.21"]
[WhiteClock "0:00:08"]
[BlackClock "0:00:18"]

1. Nf3 {[%clk 0:03:00]}  Nf6 {[%clk 0:02:58]} 2. d4 {[%clk 0:03:00]}  g6 {[%clk 0:02:53]} 3. g3 {[%clk 0:02:59]}  Bg7 {[%clk 0:02:53]} 4. Bg2 {[%clk 0:03:00]}  O-O {[%clk 0:02:53]} 5. O-O {[%clk 0:03:00]}  d6 {[%clk 0:02:53]} 6. c4 {[%clk 0:03:00]}  c6 {[%clk 0:02:54]} 7. Nc3 {[%clk 0:03:00]}  Bf5 {[%clk 0:02:54]} 8. h3 {[%clk 0:02:59]}  Ne4 {[%clk 0:02:54]} 9. Nxe4 {[%clk 0:02:58]}  Bxe4 {[%clk 0:02:54]} 10. b3 {[%clk 0:02:53]}  c5 {[%clk 0:02:51]} 11. Bb2 {[%clk 0:02:53]}  Nc6 {[%clk 0:02:51]} 12. e3 {[%clk 0:02:50]}  d5 {[%clk 0:02:47]} 13. Rc1 {[%clk 0:01:59]}  dxc4 {[%clk 0:02:28]} 14. bxc4 {[%clk 0:01:59]}  Rb8 {[%clk 0:02:13]} 15. Qb3 {[%clk 0:01:12]}  Bxf3 {[%clk 0:02:02]} 16. Bxf3 {[%clk 0:01:12]}  cxd4 {[%clk 0:02:02]} 17. exd4 {[%clk 0:01:12]}  Nxd4 {[%clk 0:02:02]} 18. Bxd4 {[%clk 0:01:12]}  Bxd4 {[%clk 0:02:02]} 19. Rfd1 {[%clk 0:01:08]}  e5 {[%clk 0:02:01]} 20. c5 {[%clk 0:01:05]}  Qe7 {[%clk 0:01:55]} 21. Qb5 {[%clk 0:01:00]}  Rfc8 {[%clk 0:01:38]} 22. Rc4 {[%clk 0:00:49]}  Rxc5 {[%clk 0:01:30]} 23. Rxc5 {[%clk 0:00:49]}  Qxc5 {[%clk 0:01:30]} 24. Qxc5 {[%clk 0:00:49]}  Bxc5 {[%clk 0:01:30]} 25. Rd7 {[%clk 0:00:49]}  b5 {[%clk 0:01:19]} 26. Bd5 {[%clk 0:00:49]}  Rf8 {[%clk 0:01:19]} 27. Rc7 {[%clk 0:00:49]}  Bb6 {[%clk 0:01:16]} 28. Re7 {[%clk 0:00:48]}  Bd4 {[%clk 0:01:15]} 29. Rb7 {[%clk 0:00:44]}  a6 {[%clk 0:01:03]} 30. Kg2 {[%clk 0:00:44]}  Kg7 {[%clk 0:01:03]} 31. Rd7 {[%clk 0:00:42]}  b4 {[%clk 0:00:57]} 32. Bb3 {[%clk 0:00:39]}  h5 {[%clk 0:00:53]} 33. f4 {[%clk 0:00:39]}  Bc3 {[%clk 0:00:49]} 34. fxe5 {[%clk 0:00:37]}  Bxe5 {[%clk 0:00:50]} 35. Ra7 {[%clk 0:00:37]}  a5 {[%clk 0:00:35]} 36. Rxa5 {[%clk 0:00:36]}  f6 {[%clk 0:00:35]} 37. Rc5 {[%clk 0:00:26]}  Rd8 {[%clk 0:00:34]} 38. Bd5 {[%clk 0:00:26]}  Kh6 {[%clk 0:00:31]} 39. Kf3 {[%clk 0:00:25]}  Bd4 {[%clk 0:00:32]} 40. Rb5 {[%clk 0:00:25]}  Bc3 {[%clk 0:00:31]} 41. g4 {[%clk 0:00:24]}  h4 {[%clk 0:00:28]} 42. Rc5 {[%clk 0:00:22]}  Rd7 {[%clk 0:00:27]} 43. Be4 {[%clk 0:00:15]}  Rd1 {[%clk 0:00:25]} 44. g5+ {[%clk 0:00:14]}  fxg5 {[%clk 0:00:24]} 45. Rc6 {[%clk 0:00:14]}  Rf1+ {[%clk 0:00:22]} 46. Kg2 {[%clk 0:00:14]}  Rf6 {[%clk 0:00:19]} 47. Rxf6 {[%clk 0:00:14]}  Bxf6 {[%clk 0:00:19]} 48. Kf3 {[%clk 0:00:15]}  Kh5 {[%clk 0:00:19]} 49. Bd5 {[%clk 0:00:08]}  g4+ {[%clk 0:00:18]} 50. hxg4+ {[%clk 0:00:09]}  Kg5 {[%clk 0:00:18]} 51. Be6 {[%clk 0:00:10]}  Be5 {[%clk 0:00:18]} 52. Kg2 {[%clk 0:00:10]}  Kf4 {[%clk 0:00:18]} 53. Kh3 {[%clk 0:00:10]}  g5 {[%clk 0:00:19]} 54. Bb3 {[%clk 0:00:10]}  Bd4 {[%clk 0:00:18]} 55. Bc4 {[%clk 0:00:08]} 1/2-1/2


[Site "https://www.chess.com"]

[Event "Titled Tuesday Blitz June 21 Early 2022"]
[White "Csonka, Balazs"]
[Black "Chigaev, Maksim"]
[WhiteFideId "742910"]
[BlackFideId "4108116"]
[WhiteElo "2404"]
[BlackElo "2457"]
[Result "1/2-1/2"]
[Round "11"]
[TimeControl "180+1"]
[Date "2022.06.21"]
[WhiteClock "0:00:17"]
[BlackClock "0:00:16"]

1. d4 {[%clk 0:03:00]}  d5 {[%clk 0:02:57]} 2. c4 {[%clk 0:02:59]}  c6 {[%clk 0:02:57]} 3. Nc3 {[%clk 0:02:54]}  Nf6 {[%clk 0:02:55]} 4. cxd5 {[%clk 0:02:50]}  cxd5 {[%clk 0:02:54]} 5. Bf4 {[%clk 0:02:50]}  Nc6 {[%clk 0:02:55]} 6. e3 {[%clk 0:02:50]}  a6 {[%clk 0:02:55]} 7. Nf3 {[%clk 0:02:41]}  Bg4 {[%clk 0:02:55]} 8. h3 {[%clk 0:02:41]}  Bxf3 {[%clk 0:02:55]} 9. Qxf3 {[%clk 0:02:42]}  e6 {[%clk 0:02:56]} 10. Bd3 {[%clk 0:02:42]}  Bd6 {[%clk 0:02:56]} 11. Bg5 {[%clk 0:02:42]}  Be7 {[%clk 0:02:53]} 12. O-O {[%clk 0:02:35]}  Nb4 {[%clk 0:02:50]} 13. Be2 {[%clk 0:02:22]}  Rc8 {[%clk 0:02:49]} 14. Rfc1 {[%clk 0:02:17]}  h6 {[%clk 0:02:37]} 15. Bxf6 {[%clk 0:02:13]}  Bxf6 {[%clk 0:02:38]} 16. a3 {[%clk 0:01:48]}  Nc6 {[%clk 0:02:37]} 17. Na4 {[%clk 0:01:35]}  O-O {[%clk 0:02:36]} 18. Nc5 {[%clk 0:01:34]}  Rc7 {[%clk 0:02:23]} 19. Nxb7 {[%clk 0:01:26]}  Nxd4 {[%clk 0:02:11]} 20. Nxd8 {[%clk 0:01:15]}  Nxf3+ {[%clk 0:02:10]} 21. gxf3 {[%clk 0:00:59]}  Rxc1+ {[%clk 0:02:10]} 22. Rxc1 {[%clk 0:00:59]}  Rxd8 {[%clk 0:02:11]} 23. Bxa6 {[%clk 0:00:54]}  Bxb2 {[%clk 0:02:08]} 24. Rc8 {[%clk 0:00:54]}  Rxc8 {[%clk 0:02:08]} 25. Bxc8 {[%clk 0:00:54]}  Bxa3 {[%clk 0:02:09]} 26. f4 {[%clk 0:00:54]}  g5 {[%clk 0:02:02]} 27. fxg5 {[%clk 0:00:53]}  hxg5 {[%clk 0:02:02]} 28. Kg2 {[%clk 0:00:53]}  Kg7 {[%clk 0:02:02]} 29. Kf3 {[%clk 0:00:47]}  Kf6 {[%clk 0:01:59]} 30. Kg4 {[%clk 0:00:45]}  Kg6 {[%clk 0:01:40]} 31. Ba6 {[%clk 0:00:43]}  Bc5 {[%clk 0:01:28]} 32. Bc8 {[%clk 0:00:42]}  Bb6 {[%clk 0:01:27]} 33. Bd7 {[%clk 0:00:41]}  f5+ {[%clk 0:01:21]} 34. Kf3 {[%clk 0:00:41]}  Kf6 {[%clk 0:01:21]} 35. Bc8 {[%clk 0:00:41]}  e5 {[%clk 0:01:17]} 36. Bb7 {[%clk 0:00:39]}  e4+ {[%clk 0:01:14]} 37. Ke2 {[%clk 0:00:21]}  Ke5 {[%clk 0:01:15]} 38. Bc6 {[%clk 0:00:15]}  f4 {[%clk 0:01:05]} 39. exf4+ {[%clk 0:00:16]}  gxf4 {[%clk 0:00:57]} 40. f3 {[%clk 0:00:17]}  Bd8 {[%clk 0:00:54]} 41. Bb7 {[%clk 0:00:16]}  Bh4 {[%clk 0:00:55]} 42. Bc6 {[%clk 0:00:15]}  Bg3 {[%clk 0:00:54]} 43. Bb7 {[%clk 0:00:14]}  Kd4 {[%clk 0:00:54]} 44. Ba8 {[%clk 0:00:14]}  exf3+ {[%clk 0:00:34]} 45. Kxf3 {[%clk 0:00:15]}  Kc4 {[%clk 0:00:34]} 46. h4 {[%clk 0:00:14]}  d4 {[%clk 0:00:16]} 47. Be4 {[%clk 0:00:15]}  d3 {[%clk 0:00:15]} 48. Bxd3+ {[%clk 0:00:15]}  Kxd3 {[%clk 0:00:15]} 49. h5 {[%clk 0:00:16]}  Be1 {[%clk 0:00:13]} 50. Kxf4 {[%clk 0:00:15]}  Bc3 {[%clk 0:00:14]} 51. Kf5 {[%clk 0:00:15]}  Bb2 {[%clk 0:00:14]} 52. Kg6 {[%clk 0:00:16]}  Bc3 {[%clk 0:00:15]} 53. h6 {[%clk 0:00:16]}  Bb2 {[%clk 0:00:15]} 54. h7 {[%clk 0:00:17]}  Bc3 {[%clk 0:00:16]} 55. h8=Q {[%clk 0:00:17]}  Bxh8 {[%clk 0:00:16]} 1/2-1/2


[Site "https://www.chess.com"]

[Event "Titled Tuesday Blitz June 21 Early 2022"]
[White "Deviprasath, Sharvesh"]
[Black "Al-Tarboush, Ward"]
[WhiteFideId "30938228"]
[BlackFideId "7601450"]
[WhiteElo "2102"]
[BlackElo "2249"]
[Result "0-1"]
[Round "11"]
[TimeControl "180+1"]
[Date "2022.06.22"]
[WhiteClock "0:02:47"]
[BlackClock "0:02:36"]

1. Nf3 {[%clk 0:03:00]}  b6 {[%clk 0:02:58]} 2. g3 {[%clk 0:03:00]}  Bb7 {[%clk 0:02:58]} 3. Bg2 {[%clk 0:03:01]}  e6 {[%clk 0:02:52]} 4. O-O {[%clk 0:03:00]}  Nf6 {[%clk 0:02:52]} 5. c4 {[%clk 0:03:01]}  Be7 {[%clk 0:02:51]} 6. Nc3 {[%clk 0:02:56]}  O-O {[%clk 0:02:50]} 7. b3 {[%clk 0:02:48]}  d6 {[%clk 0:02:45]} 8. Bb2 {[%clk 0:02:48]}  Nbd7 {[%clk 0:02:45]} 9. d4 {[%clk 0:02:49]}  Ne4 {[%clk 0:02:45]} 10. Qc2 {[%clk 0:02:46]}  Ndf6 {[%clk 0:02:42]} 11. Rad1 {[%clk 0:02:45]}  Nxc3 {[%clk 0:02:37]} 12. Bxc3 {[%clk 0:02:46]}  Be4 {[%clk 0:02:37]} 13. Bb2 {[%clk 0:02:47]}  Bxc2 {[%clk 0:02:36]} 0-1


[Site "https://www.chess.com"]